{"text_format":"3","workbook":"xlsx","n_sheets":6,"sheets":["Список группы","Сводная ведомость","Протокол экзам.вед.ПМ","Пр.эк.вед.ПМ с присв.Разряда","ЭКЗ ведомость","ДЗ ведомость"],"not_rendered":{"external_links":1},"read":"whole","date_system":"1900"}

{"sheet":"Список группы","index":0,"n_rows":39,"n_cols":5,"rows_kept":39,"merged":[[38,0,38,5]]}
[null,"Группа 16Кс1",null,null,"спец. 09.02.02"]
[{"$nulls":4},"\"Компьютерные сети\""]
[]
[]
[1,"006653","Алексеев","Никита         ","Алексеевич"]
[2,"006654","Абдуллин","Ильнар","Ильшатович"]
[3,"006655","Ахметшина           ","Алсу           ","Ниязовна            "]
[4,"006657","Багаутдинов         ","Ринат          ","Евгеньевич          "]
[5,"006658","Баранов             ","Денис          ","Владимирович        "]
[6,"006659","Бикчурин            ","Рустем         ","Ринатович           "]
[7,"006660","Валиева             ","Адиля          ","Радыфовна           "]
[8,"006661","Галашова            ","Мария          ","Игоревна            "]
[9,"006662","Гилемханова         ","Эльвина        ","Азаматовна          "]
[10,"006663","Гимадеев            ","Булат          ","Салаватович         "]
[11,"006664","Гиниатуллин         ","Адель          ","Айратович           "]
[12,"006667","Дуткин              ","Андрей         ","Сергеевич           "]
[13,"006668","Ефремов             ","Герман         ","Сергеевич           "]
[14,"006669","Зиазов              ","Муса           ","Рустемович          "]
[15,"006671","Ильясов","Магомед","Маилович"]
[16,"006541","Лаврова             ","Анна           ","Сергеевна           "]
[17,"006505","Майстренко          ","Илья           ","Андреевич           "]
[18,"006672","Маркелов            ","Герман         ","Эдуардович          "]
[19,"006666","Маясов              ","Алексей        ","Артурович           "]
[20,"006674","Мингалиев","Ибрагим","Ильмирович"]
[21,"006675","Модина              ","Ксения         ","Евгеньевна          "]
[22,"007129","Мухамадиева         ","Зарина         ","Саидбековна         "]
[23,"006527","Петров              ","Иван           ","Олегович            "]
[24,"006529","Петров              ","Никита         ","Дмитриевич          "]
[25,"006531","Столяров            ","Дмитрий        ","Ильич               "]
[26,"006532","Сулайманова         ","Айгуль         ","Дамировна           "]
[27,"006535","Фаттахов            ","Руслан         ","Марсович            "]
[28,"006536","Шакуров             ","Ришат          ","Ильсурович          "]
[29,"006537","Шамсутдинов         ","Руслан         ","Радикович           "]
[30,"006539","Шубников            ","Никита         ","Владиславович       "]
[]
[]
[]
[]
["Выпуск-"]

{"sheet":"Сводная ведомость","index":1,"n_rows":56,"n_cols":11,"rows_kept":56,"merged":[[0,0,0,10],[1,0,1,10],[3,0,3,10],[5,0,5,10],[6,0,6,10],[8,2,8,10],[9,2,9,10],[10,5,10,8],[13,0,14,0],[13,1,14,1],[13,2,13,5],[13,6,14,6],[13,7,14,7],[13,8,14,8],[13,9,14,9],[13,10,14,10],[54,2,54,5],[55,2,55,5],[55,6,55,9]]}
["Государственное автономное профессиональное образовательное учреждение"]
["\"Казанский авиационно-технический колледж имени П.В. Дементьева\""]
[]
["СВОДНАЯ ВЕДОМОСТЬ ПРОФЕССИОНАЛЬГО МОДУЛЯ"]
[]
[]
["код и название модуля"]
[]
["Специальность/профессии",null,{"$f":"'Список группы'!E1&'Список группы'!E2","v":"спец. 09.02.02\"Компьютерные сети\""}]
[null,null,"код и наименование специальности/профессии"]
[{"$f":"'Список группы'!B1","v":"Группа 16Кс1"},null,", курс обучения"]
[]
[]
["№ п/п","Ф.И.О. студента","Результаты аттестации",{"$nulls":3},"Курсовая работа / проект","Практика учебная","Практика производственная ","Экзамен (квалификационный) отметка","Вид  профессиональной деятельности (освоен/не освоен)"]
[null,null,"МДК _________","МДК _________","МДК _________","МДК _________"]
[1,{"$f":"'Список группы'!C5&\" \"&LEFT('Список группы'!D5)&\".\"&LEFT('Список группы'!E5)","v":"Алексеев Н.А"}]
[2,{"$f":"'Список группы'!C6&\" \"&LEFT('Список группы'!D6)&\".\"&LEFT('Список группы'!E6)","v":"Абдуллин И.И"}]
[3,{"$f":"'Список группы'!C7&\" \"&LEFT('Список группы'!D7)&\".\"&LEFT('Список группы'!E7)","v":"Ахметшина            А.Н"}]
[4,{"$f":"'Список группы'!C8&\" \"&LEFT('Список группы'!D8)&\".\"&LEFT('Список группы'!E8)","v":"Багаутдинов          Р.Е"}]
[5,{"$f":"'Список группы'!C9&\" \"&LEFT('Список группы'!D9)&\".\"&LEFT('Список группы'!E9)","v":"Баранов              Д.В"}]
[6,{"$f":"'Список группы'!C10&\" \"&LEFT('Список группы'!D10)&\".\"&LEFT('Список группы'!E10)","v":"Бикчурин             Р.Р"}]
[7,{"$f":"'Список группы'!C11&\" \"&LEFT('Список группы'!D11)&\".\"&LEFT('Список группы'!E11)","v":"Валиева              А.Р"}]
[8,{"$f":"'Список группы'!C12&\" \"&LEFT('Список группы'!D12)&\".\"&LEFT('Список группы'!E12)","v":"Галашова             М.И"}]
[9,{"$f":"'Список группы'!C13&\" \"&LEFT('Список группы'!D13)&\".\"&LEFT('Список группы'!E13)","v":"Гилемханова          Э.А"}]
[10,{"$f":"'Список группы'!C14&\" \"&LEFT('Список группы'!D14)&\".\"&LEFT('Список группы'!E14)","v":"Гимадеев             Б.С"}]
[11,{"$f":"'Список группы'!C15&\" \"&LEFT('Список группы'!D15)&\".\"&LEFT('Список группы'!E15)","v":"Гиниатуллин          А.А"}]
[12,{"$f":"'Список группы'!C16&\" \"&LEFT('Список группы'!D16)&\".\"&LEFT('Список группы'!E16)","v":"Дуткин               А.С"}]
[13,{"$f":"'Список группы'!C17&\" \"&LEFT('Список группы'!D17)&\".\"&LEFT('Список группы'!E17)","v":"Ефремов              Г.С"}]
[14,{"$f":"'Список группы'!C18&\" \"&LEFT('Список группы'!D18)&\".\"&LEFT('Список группы'!E18)","v":"Зиазов               М.Р"}]
[15,{"$f":"'Список группы'!C19&\" \"&LEFT('Список группы'!D19)&\".\"&LEFT('Список группы'!E19)","v":"Ильясов М.М"}]
[16,{"$f":"'Список группы'!C20&\" \"&LEFT('Список группы'!D20)&\".\"&LEFT('Список группы'!E20)","v":"Лаврова              А.С"}]
[17,{"$f":"'Список группы'!C21&\" \"&LEFT('Список группы'!D21)&\".\"&LEFT('Список группы'!E21)","v":"Майстренко           И.А"}]
[18,{"$f":"'Список группы'!C22&\" \"&LEFT('Список группы'!D22)&\".\"&LEFT('Список группы'!E22)","v":"Маркелов             Г.Э"}]
[19,{"$f":"'Список группы'!C23&\" \"&LEFT('Список группы'!D23)&\".\"&LEFT('Список группы'!E23)","v":"Маясов               А.А"}]
[20,{"$f":"'Список группы'!C24&\" \"&LEFT('Список группы'!D24)&\".\"&LEFT('Список группы'!E24)","v":"Мингалиев И.И"}]
[21,{"$f":"'Список группы'!C25&\" \"&LEFT('Список группы'!D25)&\".\"&LEFT('Список группы'!E25)","v":"Модина               К.Е"}]
[22,{"$f":"'Список группы'!C26&\" \"&LEFT('Список группы'!D26)&\".\"&LEFT('Список группы'!E26)","v":"Мухамадиева          З.С"}]
[23,{"$f":"'Список группы'!C27&\" \"&LEFT('Список группы'!D27)&\".\"&LEFT('Список группы'!E27)","v":"Петров               И.О"}]
[24,"Петров    Н.Д.          "]
[25,"Столяров     Д.И.       "]
[26,"Сулайманова   А.Д.      "]
[27,"Фаттахов        Р.М.    "]
[28,"Шакуров           Р.И.  "]
[29,"Шамсутдинов   Р.Р.      "]
[30,"Шубников         Н.В.   "]
[]
[null,"Отлично"]
[null,"Хорошо"]
[null,"Удовлетворительно"]
[null,"Не удовлетворительно"]
[null,"Не явка"]
[null,"Абсол. успеваемость"]
[null,"Кач.успеваемость"]
[]
["Заведующий отделением",{"$nulls":5},"(________________________)"]
[null,null,"подпись",{"$nulls":3},"ФИО"]

{"sheet":"Протокол экзам.вед.ПМ","index":2,"n_rows":75,"n_cols":11,"rows_kept":75,"merged":[[0,0,0,10],[1,0,1,10],[3,0,3,10],[4,1,4,10],[6,2,6,10],[7,2,7,10],[14,2,14,10],[15,2,15,10],[16,2,16,10],[17,2,17,10],[18,2,18,10],[19,2,19,10],[20,2,20,10],[21,2,21,10],[22,2,22,10],[23,2,23,10],[65,2,65,5],[66,2,66,5],[66,6,66,9],[67,2,67,5],[68,2,68,5],[68,6,68,9],[69,2,69,5],[70,2,70,5],[70,6,70,9],[71,2,71,5],[72,2,72,5],[72,6,72,9],[73,2,73,5],[74,2,74,5],[74,6,74,9]]}
["ПРОТОКОЛ"]
["экзамена (квалификационного) по профессиональному модулю"]
[]
[]
[null,"код и название модуля"]
[]
["Специальность/профессии",null,{"$f":"'Сводная ведомость'!C9:K9","v":"спец. 09.02.02\"Компьютерные сети\""}]
[null,null,"код и наименование специальности/профессии"]
[{"$f":"'Сводная ведомость'!A11","v":"Группа 16Кс1"},null,", курс обучения"]
[]
["Дата проведения: \"____\" _______________ 20 __г."]
[]
["Форма проведения"]
[]
["Председатель комиссии:"]
[null,null,"И.О. Фамилия, должность"]
["Члены комиссии:"]
[null,null,"И.О. Фамилия, должность"]
[]
[null,null,"И.О. Фамилия, должность"]
[]
[null,null,"И.О. Фамилия, должность"]
["Секретарь:"]
[null,null,"И.О. Фамилия, должность"]
[]
["№ п/п","Ф.И.О. студента","ПК _________","ПК _________","ПК _________","ПК _________","ПК _________","ПК _________","ПК _________","Итоговая отметка","Вид  профессиональной деятельности (освоен/не освоен)"]
[1,{"$f":"'Сводная ведомость'!B16","v":"Алексеев Н.А"}]
[2,{"$f":"'Сводная ведомость'!B17","v":"Абдуллин И.И"}]
[3,{"$f":"'Сводная ведомость'!B18","v":"Ахметшина            А.Н"}]
[4,{"$f":"'Сводная ведомость'!B19","v":"Багаутдинов          Р.Е"}]
[5,{"$f":"'Сводная ведомость'!B20","v":"Баранов              Д.В"}]
[6,{"$f":"'Сводная ведомость'!B21","v":"Бикчурин             Р.Р"}]
[7,{"$f":"'Сводная ведомость'!B22","v":"Валиева              А.Р"}]
[8,{"$f":"'Сводная ведомость'!B23","v":"Галашова             М.И"}]
[9,{"$f":"'Сводная ведомость'!B24","v":"Гилемханова          Э.А"}]
[10,{"$f":"'Сводная ведомость'!B25","v":"Гимадеев             Б.С"}]
[11,{"$f":"'Сводная ведомость'!B26","v":"Гиниатуллин          А.А"}]
[12,{"$f":"'Сводная ведомость'!B27","v":"Дуткин               А.С"}]
[13,{"$f":"'Сводная ведомость'!B28","v":"Ефремов              Г.С"}]
[14,{"$f":"'Сводная ведомость'!B29","v":"Зиазов               М.Р"}]
[15,{"$f":"'Сводная ведомость'!B30","v":"Ильясов М.М"}]
[16,{"$f":"'Сводная ведомость'!B31","v":"Лаврова              А.С"}]
[17,{"$f":"'Сводная ведомость'!B32","v":"Майстренко           И.А"}]
[18,{"$f":"'Сводная ведомость'!B33","v":"Маркелов             Г.Э"}]
[19,{"$f":"'Сводная ведомость'!B34","v":"Маясов               А.А"}]
[20,{"$f":"'Сводная ведомость'!B35","v":"Мингалиев И.И"}]
[21,{"$f":"'Сводная ведомость'!B36","v":"Модина               К.Е"}]
[22,{"$f":"'Сводная ведомость'!B37","v":"Мухамадиева          З.С"}]
[23,{"$f":"'Сводная ведомость'!B38","v":"Петров               И.О"}]
[24,"Петров    Н.Д.          "]
[25,"Столяров     Д.И.       "]
[26,"Сулайманова   А.Д.      "]
[27,"Фаттахов        Р.М.    "]
[28,"Шакуров           Р.И.  "]
[29,"Шамсутдинов   Р.Р.      "]
[30,"Шубников         Н.В.   "]
[]
[null,"Отлично"]
[null,"Хорошо"]
[null,"Удовлетворительно"]
[null,"Не удовлетворительно"]
[null,"Не явка"]
[null,"Абсол. успеваемость"]
[null,"Кач.успеваемость"]
[]
["Председатель комиссии:",{"$nulls":5},"(________________________)"]
[null,null,"подпись",{"$nulls":3},"ФИО"]
["Члены комиссии:",{"$nulls":5},"(________________________)"]
[null,null,"подпись",{"$nulls":3},"ФИО"]
[{"$nulls":6},"(________________________)"]
[null,null,"подпись",{"$nulls":3},"ФИО"]
[{"$nulls":6},"(________________________)"]
[null,null,"подпись",{"$nulls":3},"ФИО"]
["Секретарь:",{"$nulls":5},"(________________________)"]
[null,null,"подпись",{"$nulls":3},"ФИО"]

{"sheet":"Пр.эк.вед.ПМ с присв.Разряда","index":3,"n_rows":75,"n_cols":12,"rows_kept":75,"merged":[[0,0,0,11],[1,0,1,11],[3,0,3,10],[4,1,4,10],[6,2,6,10],[7,2,7,10],[14,2,14,10],[15,2,15,10],[16,2,16,10],[17,2,17,10],[18,2,18,10],[19,2,19,10],[20,2,20,10],[21,2,21,10],[22,2,22,10],[23,2,23,10],[65,2,65,5],[66,2,66,5],[66,6,66,9],[67,2,67,5],[68,2,68,5],[68,6,68,9],[69,2,69,5],[70,2,70,5],[70,6,70,9],[71,2,71,5],[72,2,72,5],[72,6,72,9],[73,2,73,5],[74,2,74,5],[74,6,74,9]]}
["ПРОТОКОЛ"]
["экзамена (квалификационного) по профессиональному модулю                                                                                                          по освоению профессии рабочего (служащего)"]
[]
[]
[null,"код и название модуля"]
[]
["Специальность/профессии",null,{"$f":"'Сводная ведомость'!C9:K9","v":"спец. 09.02.02\"Компьютерные сети\""}]
[null,null,"код и наименование специальности/профессии"]
[{"$f":"'Сводная ведомость'!A11","v":"Группа 16Кс1"},null,", курс обучения"]
[]
["Дата проведения: \"____\" _______________ 20 __г."]
[]
["Форма проведения"]
[]
["Председатель комиссии:"]
[null,null,"И.О. Фамилия, должность"]
["Члены комиссии:"]
[null,null,"И.О. Фамилия, должность"]
[]
[null,null,"И.О. Фамилия, должность"]
[]
[null,null,"И.О. Фамилия, должность"]
["Секретарь:"]
[null,null,"И.О. Фамилия, должность"]
[]
["№ п/п","Ф.И.О. студента","ПК _________","ПК _________","ПК _________","ПК _________","ПК _________","ПК _________","ПК _________","Итоговая отметка","Вид  профессиональной деятельности (освоен/не освоен)","Присвоенный разряд по профессии рабочего (служащего)"]
[1,{"$f":"'Протокол экзам.вед.ПМ'!B27","v":"Алексеев Н.А"}]
[2,{"$f":"'Протокол экзам.вед.ПМ'!B28","v":"Абдуллин И.И"}]
[3,{"$f":"'Протокол экзам.вед.ПМ'!B29","v":"Ахметшина            А.Н"}]
[4,{"$f":"'Протокол экзам.вед.ПМ'!B30","v":"Багаутдинов          Р.Е"}]
[5,{"$f":"'Протокол экзам.вед.ПМ'!B31","v":"Баранов              Д.В"}]
[6,{"$f":"'Протокол экзам.вед.ПМ'!B32","v":"Бикчурин             Р.Р"}]
[7,{"$f":"'Протокол экзам.вед.ПМ'!B33","v":"Валиева              А.Р"}]
[8,{"$f":"'Протокол экзам.вед.ПМ'!B34","v":"Галашова             М.И"}]
[9,{"$f":"'Протокол экзам.вед.ПМ'!B35","v":"Гилемханова          Э.А"}]
[10,{"$f":"'Протокол экзам.вед.ПМ'!B36","v":"Гимадеев             Б.С"}]
[11,{"$f":"'Протокол экзам.вед.ПМ'!B37","v":"Гиниатуллин          А.А"}]
[12,{"$f":"'Протокол экзам.вед.ПМ'!B38","v":"Дуткин               А.С"}]
[13,{"$f":"'Протокол экзам.вед.ПМ'!B39","v":"Ефремов              Г.С"}]
[14,{"$f":"'Протокол экзам.вед.ПМ'!B40","v":"Зиазов               М.Р"}]
[15,{"$f":"'Протокол экзам.вед.ПМ'!B41","v":"Ильясов М.М"}]
[16,{"$f":"'Протокол экзам.вед.ПМ'!B42","v":"Лаврова              А.С"}]
[17,{"$f":"'Протокол экзам.вед.ПМ'!B43","v":"Майстренко           И.А"}]
[18,{"$f":"'Протокол экзам.вед.ПМ'!B44","v":"Маркелов             Г.Э"}]
[19,{"$f":"'Протокол экзам.вед.ПМ'!B45","v":"Маясов               А.А"}]
[20,{"$f":"'Протокол экзам.вед.ПМ'!B46","v":"Мингалиев И.И"}]
[21,{"$f":"'Протокол экзам.вед.ПМ'!B47","v":"Модина               К.Е"}]
[22,{"$f":"'Протокол экзам.вед.ПМ'!B48","v":"Мухамадиева          З.С"}]
[23,{"$f":"'Протокол экзам.вед.ПМ'!B49","v":"Петров               И.О"}]
[24,"Петров    Н.Д.          "]
[25,"Столяров     Д.И.       "]
[26,"Сулайманова   А.Д.      "]
[27,"Фаттахов        Р.М.    "]
[28,"Шакуров           Р.И.  "]
[29,"Шамсутдинов   Р.Р.      "]
[30,"Шубников         Н.В.   "]
[]
[null,"Отлично"]
[null,"Хорошо"]
[null,"Удовлетворительно"]
[null,"Не удовлетворительно"]
[null,"Не явка"]
[null,"Абсол. успеваемость"]
[null,"Кач.успеваемость"]
[]
["Председатель комиссии:",{"$nulls":5},"(________________________)"]
[null,null,"подпись",{"$nulls":3},"ФИО"]
["Члены комиссии:",{"$nulls":5},"(________________________)"]
[null,null,"подпись",{"$nulls":3},"ФИО"]
[{"$nulls":6},"(________________________)"]
[null,null,"подпись",{"$nulls":3},"ФИО"]
[{"$nulls":6},"(________________________)"]
[null,null,"подпись",{"$nulls":3},"ФИО"]
["Секретарь:",{"$nulls":5},"(________________________)"]
[null,null,"подпись",{"$nulls":3},"ФИО"]

{"sheet":"ЭКЗ ведомость","index":4,"n_rows":62,"n_cols":7,"rows_kept":62,"merged":[[0,0,0,6],[1,0,1,6],[3,0,3,6],[5,3,5,4],[7,0,7,1],[7,2,7,6],[8,0,8,3],[11,3,11,6],[12,3,12,6],[54,0,54,2]]}
["Государственное автономное профессиональное образовательное учреждение"]
["\"Казанский авиационно-технический колледж имени П.В. Дементьева\""]
[]
["Э К З А М Е Н А Ц И О Н Н А Я   В Е Д О М О С Т Ь"]
[]
[null,null,{"$f":"'Сводная ведомость'!A11","v":"Группа 16Кс1"},{"$f":"'[1]Сводная ведомость'!C11","v":", курс обучения"}]
[]
["по дисциплине"]
[]
[{"$f":"'[1]Протокол экзам.вед.ПМ'!A11","v":"Дата проведения: \"____\" _______________ 20 __г."}]
[]
[null,null,"Экзаменатор (ы)"]
[]
[]
["№ п/п","№ билета","Ф.И.О. студента","Ометка по экзамену письмено","Отемка по экзамену устно","Отметка по экзамену общая","Подпись экзаменатора"]
[1,null,{"$f":"'Протокол экзам.вед.ПМ'!B27","v":"Алексеев Н.А"}]
[2,null,{"$f":"'Протокол экзам.вед.ПМ'!B28","v":"Абдуллин И.И"}]
[3,null,{"$f":"'Протокол экзам.вед.ПМ'!B29","v":"Ахметшина            А.Н"}]
[4,null,{"$f":"'Протокол экзам.вед.ПМ'!B30","v":"Багаутдинов          Р.Е"}]
[5,null,{"$f":"'Протокол экзам.вед.ПМ'!B31","v":"Баранов              Д.В"}]
[6,null,{"$f":"'Протокол экзам.вед.ПМ'!B32","v":"Бикчурин             Р.Р"}]
[7,null,{"$f":"'Протокол экзам.вед.ПМ'!B33","v":"Валиева              А.Р"}]
[8,null,{"$f":"'Протокол экзам.вед.ПМ'!B34","v":"Галашова             М.И"}]
[9,null,{"$f":"'Протокол экзам.вед.ПМ'!B35","v":"Гилемханова          Э.А"}]
[10,null,{"$f":"'Протокол экзам.вед.ПМ'!B36","v":"Гимадеев             Б.С"}]
[11,null,{"$f":"'Протокол экзам.вед.ПМ'!B37","v":"Гиниатуллин          А.А"}]
[12,null,{"$f":"'Протокол экзам.вед.ПМ'!B38","v":"Дуткин               А.С"}]
[13,null,{"$f":"'Протокол экзам.вед.ПМ'!B39","v":"Ефремов              Г.С"}]
[14,null,{"$f":"'Протокол экзам.вед.ПМ'!B40","v":"Зиазов               М.Р"}]
[15,null,{"$f":"'Протокол экзам.вед.ПМ'!B41","v":"Ильясов М.М"}]
[16,null,{"$f":"'Протокол экзам.вед.ПМ'!B42","v":"Лаврова              А.С"}]
[17,null,{"$f":"'Протокол экзам.вед.ПМ'!B43","v":"Майстренко           И.А"}]
[18,null,{"$f":"'Протокол экзам.вед.ПМ'!B44","v":"Маркелов             Г.Э"}]
[19,null,{"$f":"'Протокол экзам.вед.ПМ'!B45","v":"Маясов               А.А"}]
[20,null,{"$f":"'Протокол экзам.вед.ПМ'!B46","v":"Мингалиев И.И"}]
[21,null,{"$f":"'Протокол экзам.вед.ПМ'!B47","v":"Модина               К.Е"}]
[22,null,{"$f":"'Протокол экзам.вед.ПМ'!B48","v":"Мухамадиева          З.С"}]
[23,null,{"$f":"'Протокол экзам.вед.ПМ'!B49","v":"Петров               И.О"}]
[24,null,"Петров    Н.Д.          "]
[25,null,"Столяров     Д.И.       "]
[26,null,"Сулайманова   А.Д.      "]
[27,null,"Фаттахов        Р.М.    "]
[28,null,"Шакуров           Р.И.  "]
[29,null,"Шамсутдинов   Р.Р.      "]
[30,null,"Шубников         Н.В.   "]
[]
[null,null,"Отлично"]
[null,null,"Хорошо"]
[null,null,"Удовлетворительно"]
[null,null,"Не удовлетворительно"]
[null,null,"Не явка"]
[null,null,"Абсол. успеваемость"]
[null,null,"Кач.успеваемость"]
[]
["Экзаменатор (ры)",{"$nulls":3},"(________________________)"]
[{"$nulls":3},"подпись",null,"ФИО"]
[]
[{"$nulls":4},"(________________________)"]
[{"$nulls":3},"подпись",null,"ФИО"]
[]
[{"$nulls":4},"(________________________)"]
[{"$nulls":3},"подпись",null,"ФИО"]

{"sheet":"ДЗ ведомость","index":5,"n_rows":55,"n_cols":7,"rows_kept":55,"merged":[[0,0,0,6],[1,0,1,6],[3,0,3,6],[5,3,5,4],[7,0,7,1],[7,2,7,6],[8,0,8,3],[11,3,11,6],[13,2,13,3],[13,4,13,5],[14,2,14,3],[14,4,14,5],[15,2,15,3],[15,4,15,5],[16,2,16,3],[16,4,16,5],[17,2,17,3],[17,4,17,5],[18,2,18,3],[18,4,18,5],[19,2,19,3],[19,4,19,5],[20,2,20,3],[20,4,20,5],[21,2,21,3],[21,4,21,5],[22,2,22,3],[22,4,22,5],[23,2,23,3],[23,4,23,5],[24,2,24,3],[24,4,24,5],[25,2,25,3],[25,4,25,5],[26,2,26,3],[26,4,26,5],[27,2,27,3],[27,4,27,5],[28,2,28,3],[28,4,28,5],[29,2,29,3],[29,4,29,5],[30,2,30,3],[30,4,30,5],[31,2,31,3],[31,4,31,5],[32,2,32,3],[32,4,32,5],[33,2,33,3],[33,4,33,5],[34,2,34,3],[34,4,34,5],[35,2,35,3],[35,4,35,5],[36,2,36,3],[36,4,36,5],[44,2,44,3],[44,4,44,5],[45,2,45,3],[45,4,45,5],[46,2,46,3],[46,4,46,5],[47,2,47,3],[47,4,47,5],[48,2,48,3],[48,4,48,5],[49,2,49,3],[49,4,49,5],[53,0,53,2]]}
["Государственное автономное профессиональное образовательное учреждение"]
["\"Казанский авиационно-технический колледж имени П.В. Дементьева\""]
[]
["В Е Д О М О С Т Ь                                                                                                                                                     Д И Ф Ф Е Р Е Н Ц И Р О В А Н Н О Г О  З А Ч Е Т А"]
[]
[null,null,{"$f":"'Сводная ведомость'!A11","v":"Группа 16Кс1"},{"$f":"'[1]Сводная ведомость'!C11","v":", курс обучения"}]
[]
["по дисциплине"]
[]
[{"$f":"'[1]Протокол экзам.вед.ПМ'!A11","v":"Дата проведения: \"____\" _______________ 20 __г."}]
[]
[null,null,"Преподаватель"]
[]
["№ п/п","№ билета","Ф.И.О. студента",null,"Отметка по дифференцированному зачету",null,"Подпись преподавателя"]
[1,null,{"$f":"'Протокол экзам.вед.ПМ'!B27","v":"Алексеев Н.А"}]
[2,null,{"$f":"'Протокол экзам.вед.ПМ'!B28","v":"Абдуллин И.И"}]
[3,null,{"$f":"'Протокол экзам.вед.ПМ'!B29","v":"Ахметшина            А.Н"}]
[4,null,{"$f":"'Протокол экзам.вед.ПМ'!B30","v":"Багаутдинов          Р.Е"}]
[5,null,{"$f":"'Протокол экзам.вед.ПМ'!B31","v":"Баранов              Д.В"}]
[6,null,{"$f":"'Протокол экзам.вед.ПМ'!B32","v":"Бикчурин             Р.Р"}]
[7,null,{"$f":"'Протокол экзам.вед.ПМ'!B33","v":"Валиева              А.Р"}]
[8,null,{"$f":"'Протокол экзам.вед.ПМ'!B34","v":"Галашова             М.И"}]
[9,null,{"$f":"'Протокол экзам.вед.ПМ'!B35","v":"Гилемханова          Э.А"}]
[10,null,{"$f":"'Протокол экзам.вед.ПМ'!B36","v":"Гимадеев             Б.С"}]
[11,null,{"$f":"'Протокол экзам.вед.ПМ'!B37","v":"Гиниатуллин          А.А"}]
[12,null,{"$f":"'Протокол экзам.вед.ПМ'!B38","v":"Дуткин               А.С"}]
[13,null,{"$f":"'Протокол экзам.вед.ПМ'!B39","v":"Ефремов              Г.С"}]
[14,null,{"$f":"'Протокол экзам.вед.ПМ'!B40","v":"Зиазов               М.Р"}]
[15,null,{"$f":"'Протокол экзам.вед.ПМ'!B41","v":"Ильясов М.М"}]
[16,null,{"$f":"'Протокол экзам.вед.ПМ'!B42","v":"Лаврова              А.С"}]
[17,null,{"$f":"'Протокол экзам.вед.ПМ'!B43","v":"Майстренко           И.А"}]
[18,null,{"$f":"'Протокол экзам.вед.ПМ'!B44","v":"Маркелов             Г.Э"}]
[19,null,{"$f":"'Протокол экзам.вед.ПМ'!B45","v":"Маясов               А.А"}]
[20,null,{"$f":"'Протокол экзам.вед.ПМ'!B46","v":"Мингалиев И.И"}]
[21,null,{"$f":"'Протокол экзам.вед.ПМ'!B47","v":"Модина               К.Е"}]
[22,null,{"$f":"'Протокол экзам.вед.ПМ'!B48","v":"Мухамадиева          З.С"}]
[23,null,{"$f":"'Протокол экзам.вед.ПМ'!B49","v":"Петров               И.О"}]
[24,null,"Петров    Н.Д.          "]
[25,null,"Столяров     Д.И.       "]
[26,null,"Сулайманова   А.Д.      "]
[27,null,"Фаттахов        Р.М.    "]
[28,null,"Шакуров           Р.И.  "]
[29,null,"Шамсутдинов   Р.Р.      "]
[30,null,"Шубников         Н.В.   "]
[]
[null,null,"Отлично"]
[null,null,"Хорошо"]
[null,null,"Удовлетворительно"]
[null,null,"Не удовлетворительно"]
[null,null,"Не явка"]
[null,null,"Абсол. успеваемость"]
[null,null,"Кач.успеваемость"]
[]
["Преподаватель",{"$nulls":3},"(________________________)"]
[{"$nulls":3},"подпись",null,"ФИО"]